bitfinex-derivatives/quotes_ETHF0:USTF0_20260207
["timestamp","ask_amount","ask_price","bid_price","bid_amount"]
[1770448688766,2.2346459,2000.4,1999.2,11.14753188]
[1770448689562,2.2346459,2000.4,1999.2,11.15264748]
[1770448689963,2.2346459,2000.4,1996.8,6.87090357]
[1770448689964,11.77552123,1999.6,1997.1,11.40452833]
[1770448690159,11.77552123,1999.4,1997.1,11.40452833]
[1770448690367,12.02584123,1998.8,1997.1,11.40452833]
[1770448690669,12.02574123,1999.6,1997.1,11.40452833]
[1770448691063,12.0306684,1999.6,1997.1,11.40858821]
[1770448691570,0.25514717,1999.6,1997.3,11.40452833]
[1770448691765,0.25023,1999.5,1997.3,11.40452833]
[1770448692157,0.00492717,1999.6,1997.6,11.40452833]
[1770448692369,0.25023,1999.5,1997.6,11.40452833]
[1770448692570,0.00492717,1999.6,1997.6,11.40452833]
[1770448695474,0.25014,2000.2,1997.6,11.65498833]
[1770448695771,11.80345117,2000.1,1997.8,11.40452833]
[1770448695972,0.25021,1999.7,1997.8,11.40452833]
[1770448696471,0.00481456,1999.7,1997.8,11.40452833]
[1770448697861,0.25022,1999.6,1997.8,11.40452833]
[1770448698062,11.82492884,1999.6,1997.8,11.40452833]
[1770448698264,11.57470884,1999.3,1997.8,11.40452833]
[1770448698664,0.00481456,1999.7,1998.0,11.40452833]
[1770448698864,0.24992,2002.0,1999.3,11.65477833]
[1770448699068,0.24971,2003.7,2000.6,6.555996]
[1770448699267,11.57470884,2003.7,2000.9,11.40452833]
[1770448699472,0.24967,2004.0,2001.4,11.40452833]
[1770448699773,11.79784255,2004.6,2001.5,5.58489441]
[1770448699975,11.79784255,2004.6,2002.1,11.40452833]
[1770448699976,0.00608902,2004.0,2002.1,11.40452833]
[1770448700370,1.31077865,2004.7,2002.1,11.40452833]
[1770448700572,11.79784255,2005.8,2002.9,11.40452833]
[1770448700872,11.79784255,2005.8,2002.8,0.24981]
[1770448700873,11.79784255,2006.4,2003.3,11.65427833]
[1770448701066,11.79784255,2006.8,2004.0,11.40452833]
[1770448701270,2.70222,2007.6,2004.7,11.40452833]
[1770448701271,11.79784255,2007.5,2004.7,11.40452833]
[1770448701467,0.00605784,2007.5,2004.7,11.4083811]
[1770448701678,0.00605784,2007.5,2004.9,11.40452833]
[1770448702175,0.00605784,2007.5,2005.1,11.40452833]
[1770448702369,0.00605784,2007.5,2005.4,11.40452833]
[1770448702570,0.24929,2007.1,2005.4,11.40452833]
[1770448702768,11.34265147,2007.1,2005.4,11.40452833]
[1770448702973,11.34870931,2007.5,2005.4,11.40452833]
[1770448703178,0.00605784,2007.5,2005.4,11.40452833]
[1770448704878,11.37982364,2007.5,2005.4,11.40452833]
[1770448705478,0.00605784,2007.5,2005.4,11.40452833]
[1770448706776,0.00605784,2007.5,2005.6,11.40452833]
[1770448706777,6.555996,2007.4,2005.6,11.40452833]
[1770448706980,11.27901811,2007.3,2005.6,11.40452833]
[1770448707170,11.27901811,2007.3,2004.8,11.40452833]
[1770448707577,0.00605784,2007.5,2004.7,0.00385277]
[1770448707578,11.52836811,2006.6,2004.7,0.00385277]
[1770448707880,11.11537833,2006.2,2004.7,0.00385277]
[1770448708178,11.11537833,2006.2,2002.2,0.24989]
[1770448708179,12.26320833,2005.2,2002.8,11.40452833]
[1770448708375,11.11537833,2004.6,2002.4,11.40452833]
[1770448708779,11.11537833,2005.5,2002.4,11.40452833]
[1770448708979,11.11537833,2005.5,2002.6,11.40452833]
[1770448709576,11.11537833,2005.9,2002.6,11.65435833]
[1770448709778,11.11537833,2005.9,2002.8,11.40452833]
[1770448709976,11.11892753,2005.9,2002.8,11.40452833]
[1770448710180,11.11892753,2005.9,2003.0,11.40452833]
[1770448711186,11.11892753,2005.9,2003.1,6.555996]
[1770448711380,11.11892753,2005.9,2003.2,11.40452833]
[1770448712585,0.0035492,2005.9,2003.4,11.40452833]
[1770448713283,11.20750249,2005.9,2003.4,11.40452833]
[1770448714282,0.0035492,2005.9,2003.7,11.40452833]
[1770448714688,0.0035492,2005.9,2003.9,11.40452833]
[1770448714988,11.40396777,2006.8,2004.1,11.40452833]
[1770448715482,11.40751697,2006.5,2004.1,11.40452833]
[1770448715679,11.65687697,2006.5,2004.1,11.40452833]
[1770448715878,6.51702584,2006.2,2004.1,11.40452833]
[1770448716075,11.46693275,2006.1,2004.1,11.41063376]
[1770448716482,11.46693275,2005.7,2004.1,11.41063376]
[1770448716876,11.46693275,2005.3,2004.1,0.00610543]
[1770448717082,11.46693275,2005.7,2004.1,10.9377718]
[1770448717280,0.00388887,2006.2,2004.3,6.51702584]
[1770448717480,1.14625,2008.0,2004.3,6.51702584]
[1770448717481,11.46693275,2007.3,2005.2,6.51702584]
[1770448717678,0.24911,2008.5,2006.1,10.93166637]
[1770448717881,0.24911,2008.5,2004.5,1.14818]
[1770448717882,11.46693275,2009.0,2006.9,10.93166637]
[1770448718076,11.46693275,2009.0,2007.3,10.93166637]
[1770448718282,11.46693275,2010.3,2007.7,10.93166637]
[1770448718479,11.46693275,2010.0,2007.7,10.93166637]
[1770448718685,11.47047713,2010.0,2007.7,10.93739158]
[1770448718990,11.46693275,2008.8,2007.3,10.93166637]
[1770448719285,11.46693275,2007.8,2006.5,10.93166637]
[1770448719483,11.46693275,2008.2,2006.5,10.93166637]
[1770448719683,11.46693275,2009.1,2006.6,10.93166637]
[1770448719888,11.46693275,2009.1,2007.0,10.93166637]
[1770448720089,11.224989,2010.5,2007.8,10.93166637]
[1770448720284,11.224989,2010.5,2008.3,10.93166637]
[1770448720790,11.224989,2010.5,2007.0,5.34874858]
[1770448720791,11.224989,2009.2,2007.1,10.93166637]
[1770448720991,11.224989,2009.0,2007.1,10.93166637]
[1770448721187,0.00348815,2009.0,2007.2,10.93166637]
[1770448721386,0.00348815,2009.0,2007.3,10.93166637]
[1770448721583,11.22847715,2009.0,2007.3,10.93166637]
[1770448721790,11.2700621,2009.0,2007.3,10.93166637]
[1770448722287,0.24911,2008.6,2007.0,10.93729875]
[1770448722485,11.2700621,2009.0,2007.0,10.93729875]
[1770448722687,11.26657395,2008.4,2007.0,10.93729875]
[1770448722887,0.24911,2008.5,2005.4,10.73745041]
[1770448722888,11.26657395,2007.7,2006.1,10.93166637]
[1770448723189,11.26657395,2008.1,2006.1,10.93166637]
[1770448723590,11.51573395,2008.1,2006.1,10.93166637]
[1770448723889,11.51573395,2008.1,2006.1,10.93618907]
[1770448723890,11.26657395,2008.1,2006.1,10.93618907]
[1770448724088,11.71616275,2007.5,2006.1,10.93618907]
[1770448724295,11.71616275,2007.5,2006.1,0.0045227]
[1770448724296,11.46693275,2007.1,2006.1,0.0045227]
[1770448724592,0.24928,2007.2,2005.6,10.93166637]
[1770448724780,11.71621275,2007.2,2005.6,10.93166637]
[1770448724986,11.46693275,2007.2,2005.6,10.93166637]
[1770448725284,0.00528061,2007.5,2005.7,10.93166637]
[1770448725479,0.00528061,2007.5,2006.0,6.51702584]
[1770448725680,6.76614584,2008.4,2005.6,6.52241785]
[1770448725681,11.46693275,2008.5,2006.6,10.93166637]
[1770448725980,1.14524,2009.7,2006.5,6.51702584]
[1770448725981,11.46693275,2009.2,2007.0,10.93166637]
[1770448726185,11.71591275,2009.6,2007.4,10.93166637]
[1770448726391,11.46693275,2009.6,2007.9,10.93166637]
[1770448726582,11.46693275,2009.7,2008.0,10.93166637]
[1770448726784,11.71596275,2009.2,2008.0,10.93521368]
[1770448727084,11.71602275,2008.7,2005.4,2.444]
[1770448727282,11.46693275,2008.2,2005.9,10.93166637]
[1770448727487,11.46693275,2008.2,2006.3,10.93166637]
[1770448727690,11.46693275,2008.9,2006.7,10.93166637]
[1770448727883,11.71602275,2008.7,2006.7,10.93166637]
[1770448728085,11.46693275,2008.7,2006.7,10.93791195]
[1770448728287,0.00632641,2008.7,2007.1,10.93166637]
[1770448728484,0.00632641,2008.7,2006.7,0.00624558]
[1770448728485,11.46693275,2009.9,2008.0,10.93166637]
[1770448728682,11.46693275,2010.7,2008.5,10.93166637]
[1770448729283,11.46693275,2010.1,2008.5,10.93166637]
[1770448729489,0.24896,2009.7,2008.5,0.00637354]
[1770448729693,11.71590275,2009.6,2008.5,0.00637354]
[1770448730096,11.46693275,2009.9,2008.5,10.93166991]
[1770448730390,0.0059464,2010.1,2008.6,10.93166637]
[1770448730992,11.47287915,2010.1,2008.6,10.93166637]
[1770448731192,11.46693275,2009.6,2008.5,3.54e-06]
[1770448731499,11.71591275,2009.6,2008.5,3.54e-06]
[1770448731897,11.46693275,2009.6,2008.5,3.54e-06]
[1770448732099,11.46693275,2010.0,2008.5,3.54e-06]
[1770448732298,0.0059464,2010.1,2008.5,3.54e-06]
[1770448732796,11.72178915,2010.1,2008.5,3.54e-06]
[1770448733694,11.71587275,2009.9,2008.5,3.54e-06]
[1770448734293,11.71587275,2009.9,2006.6,0.24934]
[1770448734294,11.46693275,2009.2,2007.5,10.93166637]
[1770448734593,11.46693275,2009.4,2007.5,10.93166637]
[1770448734796,0.24894,2009.9,2007.4,6.51702584]
[1770448734797,0.24894,2009.9,2007.9,10.93166637]
[1770448734987,0.0059464,2010.1,2008.3,10.93166637]
[1770448735389,0.0059464,2010.1,2008.7,10.93166637]
[1770448735590,11.47287915,2010.1,2008.7,10.93166637]
[1770448736593,0.0059464,2010.1,2008.7,10.93166637]
[1770448737497,27.25402614,2009.8,2008.7,10.93166637]
[1770448737803,0.0059464,2010.1,2008.7,10.93166637]
[1770448738097,11.46693275,2010.6,2008.7,10.93166637]
[1770448738399,11.46693275,2010.6,2009.0,10.93166637]
[1770448738590,11.46693275,2011.3,2009.0,10.93166637]
[1770448738898,8.25192062,2012.5,2009.8,10.93166637]
[1770448738899,11.46693275,2011.9,2009.8,10.93166637]
[1770448739092,11.46693275,2011.5,2009.8,0.00403214]
[1770448739289,11.46693275,2011.2,2009.8,0.00403214]
[1770448740497,11.46693275,2011.4,2009.8,10.93569851]
[1770448740698,0.00362791,2011.9,2010.9,10.93166637]
[1770448740894,11.46693275,2012.2,2010.9,10.93166637]
[1770448741092,14.04129955,2013.5,2011.4,10.93166637]
[1770448741093,11.46693275,2013.2,2011.4,10.93166637]
[1770448741301,0.23131691,2014.0,2011.3,6.51702584]
[1770448741302,11.46693275,2013.6,2012.2,10.93166637]
[1770448741499,11.69824966,2014.0,2012.6,10.93166637]
[1770448741695,11.46693275,2014.9,2013.0,10.93166637]
[1770448742001,11.46693275,2015.4,2013.4,10.93166637]
[1770448742201,11.46693275,2015.1,2013.4,10.93166637]
[1770448742404,11.46693275,2014.7,2013.0,10.93788797]
[1770448742701,1.14177,2015.8,2012.7,6.51702584]
[1770448742702,11.46693275,2015.0,2012.7,6.51702584]
[1770448742900,11.46693275,2015.3,2013.6,10.93166637]
[1770448743102,1.14179,2015.8,2012.8,10.93166637]
[1770448743103,11.46693275,2014.2,2012.8,10.93166637]
[1770448743302,11.46693275,2015.0,2013.0,10.93166637]
[1770448743599,11.46693275,2015.5,2013.9,10.93166637]
[1770448743801,9.64199631,2017.4,2015.4,6.51702584]
[1770448743999,18.74086279,2017.6,2016.8,10.93166637]
[1770448744201,18.29610096,2017.5,2016.6,6.51702584]
[1770448744397,0.47603165,2019.1,2016.3,10.93166637]
[1770448744398,11.46693275,2017.7,2016.3,10.93166637]
[1770448744598,18.29610096,2019.0,2016.3,10.93166637]
[1770448744599,11.46693275,2018.2,2016.3,10.93166637]
[1770448744800,11.46693275,2018.8,2016.7,10.93166637]
[1770448744994,11.46693275,2018.8,2016.7,10.93800716]
[1770448744995,11.47052285,2018.8,2016.7,10.93800716]
[1770448745195,11.46693275,2018.6,2016.8,10.93166637]
[1770448745393,11.46693275,2018.6,2016.7,0.00634079]
[1770448745596,11.46693275,2018.4,2016.7,10.93800716]
[1770448745800,18.29610096,2018.7,2017.0,11.81126977]
[1770448746012,17.59337069,2018.7,2017.5,11.81126977]
[1770448746203,17.59337069,2018.7,2018.0,11.81126977]
[1770448746404,11.07733966,2020.8,2018.5,9.5859355]
[1770448746610,11.30916141,2020.7,2018.5,9.5859355]
[1770448746807,11.07733966,2021.5,2019.5,9.5859355]
[1770448747110,11.07733966,2022.2,2020.1,9.5859355]
[1770448747312,0.22823165,2022.1,2020.6,9.5859355]
[1770448747608,11.30557131,2022.1,2020.1,9.59180722]
[1770448747911,0.22823165,2022.0,2020.6,11.15048142]
[1770448748204,0.00507103,2022.2,2020.1,0.00587172]
[1770448748205,0.22823165,2022.2,2021.4,11.15048142]
[1770448748402,0.22823165,2021.5,2020.7,5.31070887]
[1770448748600,11.07733966,2022.7,2020.8,6.51702584]
[1770448748804,11.07733966,2022.7,2020.9,11.15048142]
[1770448749003,11.07733966,2020.8,2020.1,0.00587172]
[1770448749207,10.79634542,2020.5,2018.6,10.66074342]
[1770448749516,10.79634542,2020.5,2017.9,10.66074342]
[1770448749517,10.79634542,2020.2,2017.9,10.66074342]
[1770448749707,10.79634542,2020.2,2018.4,10.66074342]
[1770448749913,0.22823165,2020.1,2018.5,10.65357572]
[1770448750113,0.22823165,2020.0,2018.5,16.25897435]
[1770448750320,11.02457707,2020.0,2018.6,10.65357572]
[1770448750510,11.02457707,2019.9,2018.5,0.00514054]
[1770448750814,11.02457707,2019.9,2016.1,1.14155]
[1770448750815,10.79634542,2019.3,2017.2,10.65357572]
[1770448751015,1.45730737,2020.0,2017.7,10.65357572]
[1770448751016,10.79634542,2019.7,2017.7,10.65357572]
[1770448751211,11.02457707,2019.6,2017.7,10.65357572]
[1770448751414,16.05007574,2019.6,2018.2,10.65357572]
[1770448751714,0.22823165,2018.1,2016.7,10.65357572]
[1770448751914,10.79634542,2019.2,2016.8,10.54725286]
[1770448752215,10.79634542,2019.0,2017.2,10.54725286]
[1770448752422,10.79634542,2019.0,2016.9,10.54725286]
[1770448752623,10.79634542,2018.6,2016.9,10.54725286]
[1770448752816,10.79993678,2018.6,2016.9,10.55324314]
[1770448753014,10.79634542,2018.4,2016.9,10.55324314]
[1770448753209,0.22823165,2018.3,2017.2,10.54725286]
[1770448753411,0.00359136,2018.6,2017.2,10.54725286]
[1770448753621,10.79993678,2018.6,2016.9,10.55324314]
[1770448753918,13.8394727,2018.4,2016.9,10.55324314]
[1770448754113,10.79634542,2018.4,2016.9,10.55324314]
[1770448754319,13.8394727,2018.3,2016.9,8.01252913]
[1770448754513,3.04312728,2018.3,2017.3,14.52356469]
[1770448754715,10.79634542,2018.5,2017.0,5.42599202]
[1770448754914,10.79634542,2018.2,2016.9,0.00599028]
[1770448755111,10.79634542,2018.2,2014.0,0.24842]
[1770448755112,10.79634542,2017.8,2015.7,6.51702584]
[1770448755320,10.79634542,2017.8,2015.2,6.51702584]
[1770448755321,10.79634542,2017.8,2015.8,8.00653885]
[1770448755726,10.79634542,2017.8,2015.4,8.00653885]
[1770448755916,10.79634542,2017.6,2015.4,8.00653885]
[1770448756118,3.04312728,2017.7,2016.6,7.38799039]
[1770448756321,0.00359136,2018.6,2017.2,7.38799039]
[1770448756518,10.79993678,2018.6,2017.2,0.00400873]
[1770448756719,0.00359136,2018.6,2017.4,6.51702584]
[1770448756921,0.00359136,2018.6,2017.4,13.90501623]
[1770448757124,0.00359136,2018.6,2017.5,7.38799039]
[1770448757423,10.79634542,2020.5,2018.5,7.38799039]
[1770448757726,10.79634542,2021.8,2019.5,7.38799039]
[1770448757915,10.79634542,2021.8,2020.3,13.42905866]
[1770448758116,3.04312728,2021.7,2020.3,13.42905866]
[1770448758421,10.79634542,2021.6,2020.3,0.00543442]
[1770448758623,10.79634542,2021.6,2017.7,1.14065]
[1770448758624,10.79634542,2020.9,2017.4,6.91203282]
[1770448758825,10.79634542,2020.7,2018.3,6.91203282]
[1770448759121,10.79634542,2019.7,2018.0,5.2846935]
[1770448759314,10.79634542,2019.4,2016.9,6.91203282]
[1770448759520,10.79634542,2018.7,2016.3,6.51702584]
[1770448759722,10.79634542,2018.5,2016.7,6.91203282]
[1770448760117,10.79634542,2018.3,2016.7,6.91203282]
[1770448760517,10.8026935,2018.7,2017.1,13.58465774]
[1770448760717,10.8026935,2018.7,2016.8,5.18613065]
[1770448760718,3.04312728,2018.2,2016.6,13.58465774]
[1770448761020,0.00634808,2018.7,2017.1,13.58465774]
[1770448761325,3.04312728,2018.6,2017.1,7.0676319]
[1770448761828,10.8026935,2018.7,2017.4,6.51702584]
[1770448762022,10.8026935,2018.7,2017.1,7.0676319]
[1770448762727,10.8026935,2018.7,2017.0,6.51702584]
[1770448762728,10.8026935,2018.7,2017.3,7.1554179]
[1770448762922,10.8026935,2018.7,2017.5,7.1554179]
[1770448762923,0.00634808,2018.7,2017.5,7.1554179]
[1770448763125,10.79634542,2019.7,2017.9,7.14906982]
[1770448764028,10.79634542,2019.5,2017.9,7.15372966]
[1770448764619,13.8394727,2019.4,2017.9,7.15372966]
[1770448765019,0.00425293,2019.7,2018.2,6.13615402]
[1770448765223,0.00425293,2019.7,2017.9,0.00465984]
[1770448765224,10.80059835,2019.7,2017.9,0.00465984]
[1770448765425,10.79634542,2019.5,2017.9,0.00465984]
[1770448765633,10.79634542,2019.3,2017.0,6.13615402]
[1770448765832,10.79634542,2019.3,2017.1,6.34229437]
[1770448766129,10.79634542,2019.1,2017.1,6.34229437]
[1770448766320,10.79634542,2019.1,2017.2,6.34229437]
[1770448766724,10.79634542,2018.9,2017.2,6.34589703]
[1770448767225,10.79634542,2018.9,2017.2,0.00360266]
[1770448767419,10.79634542,2018.7,2017.2,0.00360266]
[1770448767625,44.18194232,2017.9,2017.2,0.00360266]
[1770448767827,0.00599891,2017.9,2017.2,0.00360266]
[1770448768022,0.24779,2019.2,2017.2,6.33561135]
[1770448768222,10.79634542,2019.2,2017.5,6.32600978]
[1770448768427,10.79634542,2019.0,2017.2,0.00360266]
[1770448768630,11.04420542,2018.6,2016.3,6.32600978]
[1770448768932,11.04423542,2018.4,2015.9,16.41141496]
[1770448769130,10.79634542,2017.6,2015.3,5.47678921]
[1770448769428,6.51702584,2017.7,2014.7,9.89438912]
[1770448769429,10.79634542,2017.1,2014.7,9.89438912]
[1770448769627,10.80148101,2017.1,2015.0,9.89438912]
[1770448769830,10.80148101,2017.1,2015.4,6.51702584]
[1770448770024,10.80148101,2017.1,2015.3,9.82929354]
[1770448770025,10.79634542,2016.9,2015.3,9.82929354]
[1770448770535,10.79634542,2016.7,2015.3,9.82929354]
[1770448770732,10.79634542,2016.7,2014.7,0.00380414]
[1770448771035,11.04459542,2015.4,2012.9,9.82929354]
[1770448771236,10.79634542,2015.0,2012.5,9.82929354]
[1770448771435,10.79634542,2015.0,2012.8,9.82929354]
[1770448771626,5.49187872,2014.9,2013.7,9.82929354]
[1770448771830,16.29224927,2014.9,2013.7,9.83545068]
[1770448772136,5.49590385,2014.9,2013.7,9.83545068]
[1770448772335,10.79634542,2016.9,2014.6,9.67143038]
[1770448772530,10.79634542,2016.9,2015.0,9.67143038]
[1770448772731,10.79634542,2016.0,2014.6,9.67143038]
[1770448773034,10.79634542,2016.0,2013.7,0.00615714]
[1770448773035,11.04454542,2015.8,2013.7,0.00615714]
[1770448773230,11.04454542,2015.8,2013.8,9.67143038]
[1770448773231,11.04922209,2015.8,2013.8,9.67143038]
[1770448773431,10.79634542,2015.6,2013.7,9.67758752]
[1770448773826,10.79634542,2015.4,2013.7,0.00615714]
[1770448774428,10.79634542,2015.2,2013.7,0.00615714]
[1770448774633,10.79634542,2015.2,2012.8,6.51702584]
[1770448774828,10.79634542,2015.2,2012.2,9.71495387]
[1770448775035,10.79634542,2015.2,2011.9,5.76124558]
[1770448775036,10.79634542,2014.2,2011.9,9.71495387]
[1770448775225,10.79634542,2013.8,2011.5,9.71495387]
[1770448775429,10.79634542,2013.8,2011.2,6.51702584]
[1770448775430,10.79634542,2013.8,2011.1,9.71495387]
[1770448775629,10.79634542,2013.6,2011.1,9.72030688]
[1770448776028,11.70332418,2013.4,2011.1,9.72030688]
[1770448776429,1.14781887,2013.8,2011.1,9.72030688]
[1770448776430,11.70332418,2013.1,2011.1,9.72030688]
[1770448776932,11.70332418,2012.9,2011.1,9.72030688]
[1770448777535,16.90040273,2012.8,2011.1,9.72030688]
[1770448777838,11.70332418,2012.7,2011.1,9.72030688]
[1770448778242,11.70332418,2012.6,2011.1,9.72030688]
[1770448778633,11.70332418,2012.1,2010.1,9.80664599]
[1770448778840,11.95211418,2011.1,2008.5,9.80664599]
[1770448779044,11.95211418,2011.1,2008.9,9.80664599]
[1770448779045,11.70332418,2011.1,2008.9,9.80664599]
[1770448779336,11.70332418,2010.9,2008.9,9.80664599]
[1770448779737,11.70973759,2010.9,2008.9,9.80894522]
[1770448779930,11.70332418,2010.7,2008.9,9.80894522]
[1770448780335,11.70332418,2010.5,2008.9,0.00229923]
[1770448780540,11.70332418,2010.5,2008.9,9.76834972]
[1770448780739,11.70332418,2010.5,2008.9,0.00229923]
[1770448780936,0.00641341,2010.9,2008.9,0.00229923]
[1770448780937,16.90040273,2010.4,2008.9,9.76834972]
[1770448781139,11.70332418,2010.3,2008.9,0.00229923]
[1770448781534,11.70332418,2010.2,2008.9,0.00229923]
[1770448781744,5.65202418,2010.2,2008.9,0.00229923]
[1770448781940,11.70332418,2010.0,2008.9,0.00229923]
[1770448782540,11.70332418,2009.8,2008.9,0.00229923]
[1770448782736,44.16889053,2009.1,2008.9,0.00229923]
[1770448782935,5.19707855,2010.1,2008.5,9.76605049]
[1770448783140,11.70332418,2010.2,2008.5,9.76605049]
[1770448783436,16.90040273,2010.1,2008.5,9.76605049]
[1770448783637,11.70332418,2010.1,2008.5,9.76605049]
[1770448783946,5.19707855,2010.0,2008.5,9.76605049]
[1770448784243,16.90469952,2010.0,2008.5,9.77194734]
[1770448784644,11.70762097,2010.0,2008.5,9.77194734]
[1770448785142,16.90040273,2009.9,2008.5,9.77194734]
[1770448785338,5.19707855,2009.9,2008.5,9.77194734]
[1770448785744,16.90040273,2009.9,2008.5,9.77194734]
[1770448786843,11.70332418,2009.9,2008.5,9.77194734]
[1770448787246,5.38914527,2009.8,2008.5,9.77194734]
[1770448787837,11.70332418,2009.7,2008.5,9.77194734]
[1770448788443,11.70332418,2009.5,2008.5,0.00589685]
[1770448789245,11.70332418,2009.7,2008.5,10.73310497]
[1770448789645,11.70332418,2009.6,2008.5,10.73310497]
[1770448790343,11.70332418,2009.4,2008.5,0.00589685]
[1770448791144,11.70332418,2009.9,2008.5,0.00589685]
[1770448791444,5.54338038,2009.8,2008.5,10.73310497]
[1770448791640,11.95228418,2009.7,2007.7,10.72720812]
[1770448791840,11.70332418,2009.5,2006.6,10.72720812]
[1770448792042,11.70332418,2009.3,2006.6,10.72720812]
[1770448792243,11.70332418,2008.5,2006.0,10.72720812]
[1770448792754,11.70332418,2008.0,2006.0,10.73088394]
[1770448793049,11.70332418,2007.8,2006.0,10.73088394]
[1770448793745,11.70332418,2007.6,2006.0,10.73088394]
[1770448793946,11.70332418,2007.6,2006.0,0.00367582]
[1770448794341,11.70332418,2007.4,2006.0,0.00367582]
[1770448794542,11.70332418,2007.4,2006.0,10.73088394]
[1770448794946,5.47695985,2007.3,2006.0,10.73088394]
[1770448795149,11.70332418,2007.2,2006.0,10.73088394]
[1770448795350,11.70332418,2007.2,2006.0,0.00367582]
[1770448795652,11.70332418,2007.0,2006.0,0.00367582]
[1770448795850,11.70743717,2007.0,2006.0,0.00367582]
[1770448796046,11.70332418,2006.8,2006.0,0.00367582]
[1770448796551,0.00411299,2007.0,2006.0,0.00367582]
[1770448796747,0.00411299,2007.0,2006.0,10.73088394]
[1770448797749,11.70332418,2008.0,2006.4,10.72720812]
[1770448797945,44.16889053,2007.3,2006.4,10.72720812]
[1770448798154,11.70332418,2007.7,2006.4,10.72720812]
[1770448798338,11.70332418,2007.7,2006.0,10.73088394]
[1770448798541,5.64832902,2007.6,2006.0,10.73088394]
[1770448798740,11.70332418,2007.5,2006.0,10.73088394]
[1770448799153,14.57491165,2007.4,2006.0,10.73088394]
[1770448799450,11.70332418,2007.4,2006.0,10.73088394]
[1770448799648,11.70332418,2007.2,2006.0,10.73088394]
[1770448800546,5.41425407,2007.1,2006.0,10.73088394]
[1770448800751,11.70332418,2008.4,2006.8,10.72720812]
[1770448800955,11.70332418,2008.4,2006.8,10.97651812]
[1770448801144,11.70332418,2008.8,2007.0,10.72720812]
[1770448801346,11.70332418,2008.8,2007.4,10.97644812]
[1770448801551,11.70332418,2009.5,2007.6,10.72720812]
[1770448801747,11.70332418,2010.2,2008.4,10.72720812]
[1770448801947,11.70712846,2009.5,2008.4,10.72720812]
[1770448802255,11.70888087,2009.5,2007.8,10.72720812]
[1770448802457,11.70888087,2009.5,2007.8,10.97639812]
[1770448803050,11.70332418,2009.3,2007.8,10.72720812]
[1770448803454,0.00555669,2009.5,2007.8,10.97639812]
[1770448803657,11.70888087,2009.5,2007.8,10.97639812]
[1770448804046,11.70888087,2009.5,2005.4,10.72720812]
[1770448804047,0.24929,2007.1,2005.4,10.72720812]
[1770448804252,1.14634,2007.8,2004.6,7.86583686]
[1770448804253,11.95265418,2006.7,2004.6,10.72720812]
[1770448804550,11.70332418,2006.3,2004.2,10.72720812]
[1770448805051,11.70685933,2006.3,2004.4,10.97681812]
[1770448805252,3.10566242,2006.2,2004.6,10.72720812]
[1770448805453,11.70685933,2006.3,2004.5,0.2496]
[1770448805454,0.00353515,2006.3,2004.8,10.72720812]
[1770448805654,11.70332418,2006.7,2004.7,0.24957]
[1770448805655,11.70332418,2006.7,2005.0,10.72720812]
[1770448806147,14.10549718,2006.6,2005.0,10.72720812]
[1770448806349,10.99983476,2006.6,2005.0,10.72720812]
[1770448806656,10.99983476,2006.4,2005.0,10.72720812]
[1770448807250,11.00383658,2006.6,2005.0,10.72720812]
[1770448807451,0.00400182,2006.6,2005.0,10.72720812]
[1770448807956,3.10566242,2006.5,2005.0,10.72720812]
[1770448808148,0.00400182,2006.6,2005.0,10.97674812]
[1770448808350,10.99983476,2008.4,2006.7,11.14344542]
[1770448808555,10.99983476,2008.4,2006.7,11.39277542]
[1770448808755,10.99983476,2008.4,2006.7,11.14344542]
[1770448809160,3.10566242,2008.3,2006.7,11.14344542]
[1770448809360,14.93064216,2008.3,2006.7,11.14891124]
[1770448809562,11.82497974,2008.3,2006.7,11.14891124]
[1770448809761,0.00517271,2008.3,2006.9,10.86543213]
[1770448810266,11.81980703,2009.1,2007.2,11.11470213]
[1770448811156,11.81980703,2008.9,2007.2,11.11470213]
[1770448811454,11.82418749,2008.9,2007.2,10.86543213]
[1770448812160,14.92546945,2008.8,2007.2,10.86543213]
[1770448812763,0.00438046,2008.9,2007.4,10.86543213]
[1770448813157,3.10566242,2008.8,2007.4,10.86543213]
[1770448813359,11.82418749,2008.9,2007.4,10.86543213]
[1770448814353,0.00438046,2008.9,2007.4,10.86543213]
[1770448815458,0.00438046,2008.9,2006.7,7.18607628]
[1770448815459,0.00438046,2008.9,2007.6,11.11464213]
[1770448815761,0.00438046,2008.9,2007.8,10.86543213]
[1770448815956,11.81980703,2009.8,2007.8,10.86543213]
[1770448816156,11.81980703,2009.8,2008.0,10.86543213]
[1770448816753,3.10566242,2009.7,2008.0,10.86543213]
[1770448816953,11.81980703,2009.6,2008.0,10.86543213]
[1770448817558,3.10566242,2009.5,2008.0,10.86543213]
[1770448817764,11.81980703,2009.6,2008.0,10.86543213]
[1770448818159,11.81980703,2009.4,2008.0,10.86543213]
[1770448818760,0.00391909,2009.7,2007.4,10.86543213]
[1770448818761,11.81980703,2009.2,2007.4,10.86543213]
[1770448819160,11.81980703,2009.2,2007.7,10.86543213]
[1770448819368,11.81980703,2009.2,2007.7,11.11463213]
[1770448819559,11.81980703,2009.6,2007.9,10.86543213]
[1770448820069,11.81980703,2009.0,2007.3,10.86543213]
[1770448820670,11.81980703,2009.0,2007.5,10.86543213]
[1770448820869,11.81980703,2009.3,2007.5,10.86543213]
[1770448821067,11.82372612,2009.7,2007.9,0.24918]
[1770448821262,11.81980703,2009.5,2008.0,10.86543213]
[1770448821569,3.10566242,2009.3,2008.0,10.86543213]
[1770448821759,11.81980703,2009.5,2008.0,10.86543213]
[1770448823271,14.92546945,2009.4,2008.0,10.86543213]
[1770448823466,0.00391909,2009.7,2008.0,11.11460213]
[1770448823771,11.82372612,2009.7,2008.0,11.11460213]
[1770448824072,11.82372612,2009.7,2008.1,4.64763018]
[1770448824263,11.82372612,2009.7,2008.2,10.86543213]
[1770448824468,11.82372612,2009.7,2008.2,10.87080872]
[1770448824862,11.81980703,2009.5,2008.2,10.87080872]
[1770448825365,0.00391909,2009.7,2008.4,10.86543213]
[1770448825675,11.82372612,2009.7,2008.6,10.86543213]
[1770448826267,11.81980703,2009.5,2008.2,10.87080872]
[1770448826672,11.81980703,2009.3,2008.2,0.00537659]
[1770448826972,12.06884703,2009.1,2007.2,10.86543213]
[1770448827173,11.81980703,2008.8,2006.7,10.86543213]
[1770448827372,11.81980703,2008.3,2006.7,10.86543213]
[1770448827569,0.08666213,2009.5,2005.8,7.18061046]
[1770448827570,11.81980703,2008.0,2006.3,10.86543213]
[1770448827770,11.82390344,2008.0,2006.3,10.86926338]
[1770448828069,11.81980703,2007.8,2006.3,10.86926338]
[1770448828471,0.00409641,2008.0,2006.5,10.86543213]
[1770448828666,0.00409641,2008.0,2006.7,11.11475213]
[1770448828877,0.00409641,2008.0,2006.9,10.86543213]
[1770448829576,0.00409641,2008.0,2007.1,10.86543213]
[1770448829783,0.24902,2009.2,2007.1,10.86543213]
[1770448829784,11.81980703,2008.8,2007.1,10.86543213]
[1770448829972,6.73102211,2010.8,2007.3,11.11468213]
[1770448829973,12.06874703,2009.9,2007.3,11.11468213]
[1770448830273,3.10566242,2009.1,2007.5,10.86543213]
[1770448830472,11.81980703,2009.8,2008.0,0.24917]